[Event "Titled Tuesday Blitz January 10 Early 2023"]
[White "Ladan, Nicholas"]
[Black "Ioannidis, Evgenios"]
[WhiteFideId "30918855"]
[BlackFideId "4229274"]
[WhiteElo "2228"]
[BlackElo "2467"]
[Result "1-0"]
[Round "09"]
[TimeControl "180+2"]
[Date "2023.01.10"]
[WhiteClock "0:00:14"]
[BlackClock "0:00:55"]

1. b4 {[%clk 0:03:00]}  e5 {[%clk 0:02:55]} 2. Bb2 {[%clk 0:03:01]}  Bxb4 {[%clk 0:02:48]} 3. Bxe5 {[%clk 0:03:01]}  Nf6 {[%clk 0:02:48]} 4. c3 {[%clk 0:03:01]}  Be7 {[%clk 0:02:43]} 5. Nf3 {[%clk 0:03:02]}  O-O {[%clk 0:02:42]} 6. d4 {[%clk 0:03:01]}  d6 {[%clk 0:02:38]} 7. Bg3 {[%clk 0:03:01]}  c5 {[%clk 0:02:32]} 8. Nbd2 {[%clk 0:02:57]}  Nc6 {[%clk 0:02:27]} 9. e4 {[%clk 0:02:53]}  cxd4 {[%clk 0:02:27]} 10. cxd4 {[%clk 0:02:54]}  d5 {[%clk 0:02:27]} 11. e5 {[%clk 0:02:52]}  Ne4 {[%clk 0:02:27]} 12. Bd3 {[%clk 0:02:51]}  Bf5 {[%clk 0:02:23]} 13. Qb1 {[%clk 0:02:07]}  Qa5 {[%clk 0:02:21]} 14. O-O {[%clk 0:02:02]}  Bb4 {[%clk 0:02:08]} 15. Nxe4 {[%clk 0:01:59]}  dxe4 {[%clk 0:02:08]} 16. Bxe4 {[%clk 0:02:00]}  Bg6 {[%clk 0:02:04]} 17. Bxg6 {[%clk 0:01:55]}  hxg6 {[%clk 0:02:04]} 18. Qe4 {[%clk 0:01:55]}  Rad8 {[%clk 0:02:00]} 19. Rad1 {[%clk 0:01:43]}  Qxa2 {[%clk 0:01:59]} 20. d5 {[%clk 0:01:37]}  Qb3 {[%clk 0:01:42]} 21. Rd3 {[%clk 0:01:24]}  Qc2 {[%clk 0:01:42]} 22. Rfd1 {[%clk 0:01:13]}  Ne7 {[%clk 0:01:41]} 23. Qxb4 {[%clk 0:01:11]}  Nf5 {[%clk 0:01:41]} 24. Qd2 {[%clk 0:01:06]}  Qc5 {[%clk 0:01:40]} 25. d6 {[%clk 0:01:04]}  Rc8 {[%clk 0:01:37]} 26. d7 {[%clk 0:00:59]}  Rcd8 {[%clk 0:01:37]} 27. Bh4 {[%clk 0:00:59]}  Nxh4 {[%clk 0:01:36]} 28. Nxh4 {[%clk 0:01:00]}  Qxe5 {[%clk 0:01:37]} 29. Nf3 {[%clk 0:00:59]}  Qf5 {[%clk 0:01:37]} 30. Qg5 {[%clk 0:00:55]}  Qe6 {[%clk 0:01:33]} 31. Qh4 {[%clk 0:00:53]}  f6 {[%clk 0:01:33]} 32. Qd4 {[%clk 0:00:47]}  Rf7 {[%clk 0:01:31]} 33. Qxa7 {[%clk 0:00:44]}  Rfxd7 {[%clk 0:01:30]} 34. Rxd7 {[%clk 0:00:43]}  Rxd7 {[%clk 0:01:30]} 35. Rxd7 {[%clk 0:00:35]}  Qxd7 {[%clk 0:01:31]} 36. h3 {[%clk 0:00:35]}  g5 {[%clk 0:01:31]} 37. Qd4 {[%clk 0:00:33]}  Qc6 {[%clk 0:01:31]} 38. Nd2 {[%clk 0:00:31]}  Qc1+ {[%clk 0:01:29]} 39. Kh2 {[%clk 0:00:31]}  Qc7+ {[%clk 0:01:30]} 40. g3 {[%clk 0:00:31]}  Qc2 {[%clk 0:01:27]} 41. Ne4 {[%clk 0:00:29]}  b5 {[%clk 0:01:25]} 42. Qd5+ {[%clk 0:00:25]}  Kh7 {[%clk 0:01:23]} 43. Qf5+ {[%clk 0:00:22]}  Kh8 {[%clk 0:01:20]} 44. Nd6 {[%clk 0:00:15]}  Qxf5 {[%clk 0:01:17]} 45. Nxf5 {[%clk 0:00:16]}  b4 {[%clk 0:01:16]} 46. Nd4 {[%clk 0:00:17]}  Kg8 {[%clk 0:01:16]} 47. Kg2 {[%clk 0:00:17]}  g6 {[%clk 0:01:15]} 48. Kf3 {[%clk 0:00:17]}  Kg7 {[%clk 0:01:15]} 49. Ke4 {[%clk 0:00:18]}  Kh6 {[%clk 0:01:13]} 50. Kd5 {[%clk 0:00:17]}  Kh5 {[%clk 0:01:08]} 51. Ke6 {[%clk 0:00:17]}  f5 {[%clk 0:01:08]} 52. Ke5 {[%clk 0:00:15]}  Kh6 {[%clk 0:01:03]} 53. Kd5 {[%clk 0:00:12]}  Kh5 {[%clk 0:01:03]} 54. Kc4 {[%clk 0:00:13]}  g4 {[%clk 0:01:03]} 55. h4 {[%clk 0:00:12]}  f4 {[%clk 0:01:04]} 56. Ne2 {[%clk 0:00:12]}  fxg3 {[%clk 0:01:00]} 57. fxg3 {[%clk 0:00:12]}  g5 {[%clk 0:01:00]} 58. hxg5 {[%clk 0:00:13]}  Kxg5 {[%clk 0:01:01]} 59. Kxb4 {[%clk 0:00:12]}  Kf5 {[%clk 0:01:02]} 60. Nc3 {[%clk 0:00:12]}  Ke5 {[%clk 0:01:00]} 61. Kc4 {[%clk 0:00:13]}  Kf5 {[%clk 0:01:00]} 62. Kd3 {[%clk 0:00:14]}  Ke5 {[%clk 0:01:00]} 63. Ke3 {[%clk 0:00:14]}  Kf5 {[%clk 0:00:59]} 64. Ne2 {[%clk 0:00:15]}  Ke5 {[%clk 0:00:59]} 65. Nf4 {[%clk 0:00:13]}  Kf6 {[%clk 0:00:54]} 66. Kd4 {[%clk 0:00:13]}  Kf5 {[%clk 0:00:55]} 67. Kd5 {[%clk 0:00:14]} 1-0


[Site "https://www.chess.com"]

[Event "Titled Tuesday Blitz January 10 Early 2023"]
[White "Vagman, Roy"]
[Black "Goryachkina, Aleksandra"]
[WhiteFideId "2828995"]
[BlackFideId "4147103"]
[WhiteElo "2273"]
[BlackElo "2571"]
[Result "0-1"]
[Round "09"]
[TimeControl "180+2"]
[Date "2023.01.10"]
[WhiteClock "0:00:08"]
[BlackClock "0:00:10"]

1. c4 {[%clk 0:03:00]}  Nf6 {[%clk 0:02:58]} 2. Nc3 {[%clk 0:03:00]}  c5 {[%clk 0:02:58]} 3. g3 {[%clk 0:02:59]}  Nc6 {[%clk 0:02:58]} 4. Bg2 {[%clk 0:02:58]}  g6 {[%clk 0:02:59]} 5. Nf3 {[%clk 0:02:58]}  Bg7 {[%clk 0:02:59]} 6. O-O {[%clk 0:02:57]}  O-O {[%clk 0:02:59]} 7. d3 {[%clk 0:02:55]}  d5 {[%clk 0:02:50]} 8. cxd5 {[%clk 0:02:54]}  Nxd5 {[%clk 0:02:50]} 9. Bd2 {[%clk 0:02:52]}  Bg4 {[%clk 0:02:39]} 10. h3 {[%clk 0:02:42]}  Bxf3 {[%clk 0:02:38]} 11. Bxf3 {[%clk 0:02:43]}  e6 {[%clk 0:02:39]} 12. Bg2 {[%clk 0:02:41]}  Qd7 {[%clk 0:02:35]} 13. Rc1 {[%clk 0:02:34]}  b6 {[%clk 0:02:35]} 14. Qa4 {[%clk 0:02:30]}  Rac8 {[%clk 0:02:32]} 15. Nxd5 {[%clk 0:02:21]}  exd5 {[%clk 0:02:32]} 16. Bc3 {[%clk 0:02:21]}  Rfd8 {[%clk 0:02:24]} 17. Kh2 {[%clk 0:01:47]}  Qe7 {[%clk 0:02:15]} 18. Rce1 {[%clk 0:01:37]}  Qd6 {[%clk 0:01:50]} 19. Bxg7 {[%clk 0:01:33]}  Kxg7 {[%clk 0:01:50]} 20. e3 {[%clk 0:01:22]}  Ne5 {[%clk 0:01:43]} 21. Rd1 {[%clk 0:01:18]}  Qe6 {[%clk 0:01:14]} 22. d4 {[%clk 0:01:01]}  Nc6 {[%clk 0:01:13]} 23. dxc5 {[%clk 0:00:56]}  bxc5 {[%clk 0:01:14]} 24. Rd2 {[%clk 0:00:49]}  d4 {[%clk 0:01:07]} 25. Bxc6 {[%clk 0:00:37]}  Qxc6 {[%clk 0:01:06]} 26. Qxc6 {[%clk 0:00:37]}  Rxc6 {[%clk 0:01:07]} 27. Rfd1 {[%clk 0:00:34]}  Rcd6 {[%clk 0:01:05]} 28. exd4 {[%clk 0:00:31]}  cxd4 {[%clk 0:01:04]} 29. Kg2 {[%clk 0:00:25]}  Kf6 {[%clk 0:01:05]} 30. Kf3 {[%clk 0:00:19]}  Ke5 {[%clk 0:01:03]} 31. Re2+ {[%clk 0:00:19]}  Kd5 {[%clk 0:01:04]} 32. Re7 {[%clk 0:00:19]}  R8d7 {[%clk 0:01:00]} 33. Re8 {[%clk 0:00:18]}  Rb7 {[%clk 0:00:58]} 34. b3 {[%clk 0:00:18]}  Rc7 {[%clk 0:00:57]} 35. Rd3 {[%clk 0:00:17]}  Rc3 {[%clk 0:00:50]} 36. Ke2 {[%clk 0:00:15]}  Rc2+ {[%clk 0:00:45]} 37. Rd2 {[%clk 0:00:14]}  Re6+ {[%clk 0:00:25]} 38. Rxe6 {[%clk 0:00:14]}  Rxd2+ {[%clk 0:00:26]} 39. Kxd2 {[%clk 0:00:14]}  fxe6 {[%clk 0:00:26]} 40. Kd3 {[%clk 0:00:13]}  e5 {[%clk 0:00:26]} 41. f3 {[%clk 0:00:13]}  g5 {[%clk 0:00:18]} 42. b4 {[%clk 0:00:11]}  a6 {[%clk 0:00:16]} 43. a3 {[%clk 0:00:09]}  h5 {[%clk 0:00:15]} 44. g4 {[%clk 0:00:09]}  h4 {[%clk 0:00:12]} 45. a4 {[%clk 0:00:09]}  Kd6 {[%clk 0:00:10]} 46. Ke4 {[%clk 0:00:05]}  Kc6 {[%clk 0:00:08]} 47. Kd3 {[%clk 0:00:03]}  Kd5 {[%clk 0:00:08]} 48. Kd2 {[%clk 0:00:02]}  Kc4 {[%clk 0:00:09]} 49. b5 {[%clk 0:00:02]}  axb5 {[%clk 0:00:09]} 50. a5 {[%clk 0:00:03]}  Kc5 {[%clk 0:00:10]} 51. Kd3 {[%clk 0:00:03]}  Kc6 {[%clk 0:00:09]} 52. f4 {[%clk 0:00:04]}  exf4 {[%clk 0:00:07]} 53. Kxd4 {[%clk 0:00:04]}  Kb7 {[%clk 0:00:08]} 54. Ke4 {[%clk 0:00:04]}  Ka6 {[%clk 0:00:08]} 55. Kf5 {[%clk 0:00:04]}  f3 {[%clk 0:00:08]} 56. Kxg5 {[%clk 0:00:05]}  f2 {[%clk 0:00:09]} 57. Kxh4 {[%clk 0:00:05]}  f1=Q {[%clk 0:00:10]} 58. g5 {[%clk 0:00:05]}  b4 {[%clk 0:00:10]} 59. g6 {[%clk 0:00:05]}  b3 {[%clk 0:00:10]} 60. g7 {[%clk 0:00:05]}  Qf6+ {[%clk 0:00:09]} 61. Kh5 {[%clk 0:00:06]}  Qxg7 {[%clk 0:00:09]} 62. h4 {[%clk 0:00:07]}  Qf7+ {[%clk 0:00:09]} 63. Kh6 {[%clk 0:00:07]}  Kb5 {[%clk 0:00:09]} 64. h5 {[%clk 0:00:07]}  b2 {[%clk 0:00:10]} 65. a6 {[%clk 0:00:08]}  b1=Q {[%clk 0:00:10]} 66. a7 {[%clk 0:00:09]}  Qbh7+ {[%clk 0:00:09]} 67. Kg5 {[%clk 0:00:08]}  Qhxh5# {[%clk 0:00:10]} 0-1


[Site "https://www.chess.com"]

[Event "Titled Tuesday Blitz January 10 Early 2023"]
[White "Ljukin, Sergei"]
[Black "Ilkhomi, Jaloliddin"]
[WhiteFideId "14102200"]
[BlackFideId "14700948"]
[WhiteElo "2362"]
[BlackElo "1997"]
[Result "0-1"]
[Round "09"]
[TimeControl "180+2"]
[Date "2023.01.10"]
[WhiteClock "0:00:03"]
[BlackClock "0:00:07"]

1. e4 {[%clk 0:03:00]}  e6 {[%clk 0:02:59]} 2. d4 {[%clk 0:02:59]}  d5 {[%clk 0:02:59]} 3. Nc3 {[%clk 0:02:59]}  Bb4 {[%clk 0:02:58]} 4. e5 {[%clk 0:02:57]}  c5 {[%clk 0:02:58]} 5. a3 {[%clk 0:02:57]}  Bxc3+ {[%clk 0:02:59]} 6. bxc3 {[%clk 0:02:58]}  Qa5 {[%clk 0:02:59]} 7. Bd2 {[%clk 0:02:57]}  Qa4 {[%clk 0:03:00]} 8. Qg4 {[%clk 0:02:56]}  Kf8 {[%clk 0:02:59]} 9. Nf3 {[%clk 0:02:45]}  Nc6 {[%clk 0:02:50]} 10. Be2 {[%clk 0:02:29]}  Nge7 {[%clk 0:02:46]} 11. O-O {[%clk 0:01:57]}  Qxc2 {[%clk 0:02:34]} 12. Rfe1 {[%clk 0:01:21]}  Bd7 {[%clk 0:01:58]} 13. dxc5 {[%clk 0:01:17]}  Rd8 {[%clk 0:01:40]} 14. Rab1 {[%clk 0:01:14]}  Bc8 {[%clk 0:01:36]} 15. Qf4 {[%clk 0:00:58]}  Ng6 {[%clk 0:01:30]} 16. Qg3 {[%clk 0:00:47]}  Ncxe5 {[%clk 0:01:15]} 17. Nxe5 {[%clk 0:00:19]}  Qxd2 {[%clk 0:01:14]} 18. Rbd1 {[%clk 0:00:13]}  Qh6 {[%clk 0:01:05]} 19. Nd3 {[%clk 0:00:12]}  Qh4 {[%clk 0:01:01]} 20. Qc7 {[%clk 0:00:12]}  Qe7 {[%clk 0:01:00]} 21. Qb8 {[%clk 0:00:12]}  a6 {[%clk 0:00:48]} 22. c4 {[%clk 0:00:12]}  d4 {[%clk 0:00:23]} 23. Bf3 {[%clk 0:00:12]}  Nh4 {[%clk 0:00:16]} 24. Ne5 {[%clk 0:00:12]}  Nxf3+ {[%clk 0:00:16]} 25. Nxf3 {[%clk 0:00:12]}  d3 {[%clk 0:00:12]} 26. Re3 {[%clk 0:00:08]}  g6 {[%clk 0:00:07]} 27. Rexd3 {[%clk 0:00:08]}  Rxd3 {[%clk 0:00:08]} 28. Rxd3 {[%clk 0:00:05]}  Kg7 {[%clk 0:00:09]} 29. Qe5+ {[%clk 0:00:04]}  f6 {[%clk 0:00:09]} 30. Qe3 {[%clk 0:00:04]}  e5 {[%clk 0:00:10]} 31. h4 {[%clk 0:00:04]}  Bf5 {[%clk 0:00:09]} 32. Rd6 {[%clk 0:00:03]}  Rd8 {[%clk 0:00:09]} 33. Qd2 {[%clk 0:00:04]}  Rc8 {[%clk 0:00:09]} 34. Qe3 {[%clk 0:00:03]}  Bg4 {[%clk 0:00:07]} 35. h5 {[%clk 0:00:03]}  Bxh5 {[%clk 0:00:07]} 0-1


[Site "https://www.chess.com"]

[Event "Titled Tuesday Blitz January 10 Early 2023"]
[White "Shohat, Yotam"]
[Black "Csonka, Balazs"]
[WhiteFideId "2813955"]
[BlackFideId "742910"]
[WhiteElo "2346"]
[BlackElo "2496"]
[Result "1-0"]
[Round "09"]
[TimeControl "180+2"]
[Date "2023.01.10"]
[WhiteClock "0:00:06"]
[BlackClock "0:00:02"]

1. d4 {[%clk 0:03:00]}  Nf6 {[%clk 0:02:58]} 2. Bg5 {[%clk 0:03:00]}  e6 {[%clk 0:02:34]} 3. e4 {[%clk 0:02:59]}  h6 {[%clk 0:02:34]} 4. Bxf6 {[%clk 0:02:52]}  Qxf6 {[%clk 0:02:35]} 5. Nc3 {[%clk 0:02:49]}  d6 {[%clk 0:02:10]} 6. Nf3 {[%clk 0:02:48]}  g6 {[%clk 0:02:08]} 7. Bd3 {[%clk 0:02:27]}  Bg7 {[%clk 0:02:08]} 8. Qe2 {[%clk 0:02:26]}  Nc6 {[%clk 0:02:02]} 9. O-O-O {[%clk 0:02:26]}  O-O {[%clk 0:02:01]} 10. Bb5 {[%clk 0:02:04]}  Bd7 {[%clk 0:02:01]} 11. Kb1 {[%clk 0:02:01]}  a6 {[%clk 0:01:59]} 12. Ba4 {[%clk 0:01:14]}  b5 {[%clk 0:01:51]} 13. Bb3 {[%clk 0:01:14]}  Na5 {[%clk 0:01:38]} 14. e5 {[%clk 0:01:12]}  Qe7 {[%clk 0:01:35]} 15. h4 {[%clk 0:00:56]}  Rfc8 {[%clk 0:00:57]} 16. Ne4 {[%clk 0:00:54]}  Bc6 {[%clk 0:00:48]} 17. h5 {[%clk 0:00:47]}  g5 {[%clk 0:00:46]} 18. Nfxg5 {[%clk 0:00:44]}  Nxb3 {[%clk 0:00:42]} 19. axb3 {[%clk 0:00:39]}  hxg5 {[%clk 0:00:39]} 20. h6 {[%clk 0:00:33]}  Bh8 {[%clk 0:00:22]} 21. h7+ {[%clk 0:00:28]}  Kf8 {[%clk 0:00:22]} 22. f4 {[%clk 0:00:25]}  Bxe4 {[%clk 0:00:12]} 23. Qxe4 {[%clk 0:00:26]}  Rd8 {[%clk 0:00:10]} 24. Rdf1 {[%clk 0:00:18]}  gxf4 {[%clk 0:00:05]} 25. Qxf4 {[%clk 0:00:18]}  dxe5 {[%clk 0:00:05]} 26. dxe5 {[%clk 0:00:16]}  Rd5 {[%clk 0:00:04]} 27. Qg4 {[%clk 0:00:06]}  Ke8 {[%clk 0:00:05]} 28. Qg8+ {[%clk 0:00:06]}  Kd7 {[%clk 0:00:02]} 29. Qxa8 {[%clk 0:00:05]}  Bxe5 {[%clk 0:00:03]} 30. h8=Q {[%clk 0:00:04]}  Bxh8 {[%clk 0:00:03]} 31. Qxh8 {[%clk 0:00:05]}  Kc6 {[%clk 0:00:03]} 32. Qc3+ {[%clk 0:00:05]}  Kb7 {[%clk 0:00:03]} 33. Qf3 {[%clk 0:00:06]}  Qd7 {[%clk 0:00:02]} 34. Rd1 {[%clk 0:00:06]}  c6 {[%clk 0:00:03]} 35. Rxd5 {[%clk 0:00:06]}  cxd5 {[%clk 0:00:02]} 36. Rh7 {[%clk 0:00:06]} 1-0


[Site "https://www.chess.com"]

[Event "Titled Tuesday Blitz January 10 Early 2023"]
[White "Goldin, Roman"]
[Black "Barria Zuniga, Daniel"]
[WhiteFideId "2803860"]
[BlackFideId "3400816"]
[WhiteElo "2322"]
[BlackElo "2341"]
[Result "0-1"]
[Round "09"]
[TimeControl "180+2"]
[Date "2023.01.10"]
[WhiteClock "0:00:07"]
[BlackClock "0:00:52"]

1. Nf3 {[%clk 0:02:59]}  g6 {[%clk 0:02:53]} 2. e4 {[%clk 0:02:57]}  Bg7 {[%clk 0:02:53]} 3. d4 {[%clk 0:02:57]}  c5 {[%clk 0:02:54]} 4. d5 {[%clk 0:02:56]}  d6 {[%clk 0:02:53]} 5. Nc3 {[%clk 0:02:54]}  Nf6 {[%clk 0:02:53]} 6. Be2 {[%clk 0:02:53]}  O-O {[%clk 0:02:52]} 7. O-O {[%clk 0:02:50]}  Na6 {[%clk 0:02:52]} 8. Nd2 {[%clk 0:02:48]}  Nc7 {[%clk 0:02:52]} 9. a4 {[%clk 0:02:47]}  b6 {[%clk 0:02:49]} 10. Re1 {[%clk 0:02:46]}  a6 {[%clk 0:02:49]} 11. Nc4 {[%clk 0:02:43]}  Rb8 {[%clk 0:02:48]} 12. Bf1 {[%clk 0:02:33]}  b5 {[%clk 0:02:46]} 13. axb5 {[%clk 0:02:33]}  axb5 {[%clk 0:02:47]} 14. Na5 {[%clk 0:02:32]}  Bd7 {[%clk 0:02:47]} 15. f4 {[%clk 0:02:21]}  b4 {[%clk 0:02:44]} 16. Nb1 {[%clk 0:02:03]}  Ra8 {[%clk 0:02:43]} 17. Nd2 {[%clk 0:01:34]}  Ncxd5 {[%clk 0:02:39]} 18. exd5 {[%clk 0:01:29]}  Rxa5 {[%clk 0:02:36]} 19. Rxa5 {[%clk 0:01:29]}  Qxa5 {[%clk 0:02:36]} 20. Rxe7 {[%clk 0:01:28]}  Qd8 {[%clk 0:02:36]} 21. Re1 {[%clk 0:01:20]}  Nxd5 {[%clk 0:02:36]} 22. Nf3 {[%clk 0:00:59]}  Bc6 {[%clk 0:02:31]} 23. f5 {[%clk 0:00:54]}  Qd7 {[%clk 0:02:16]} 24. fxg6 {[%clk 0:00:41]}  hxg6 {[%clk 0:02:15]} 25. Ng5 {[%clk 0:00:17]}  Qf5 {[%clk 0:01:57]} 26. Bd3 {[%clk 0:00:15]}  Qd7 {[%clk 0:01:45]} 27. Qf3 {[%clk 0:00:13]}  Nf6 {[%clk 0:01:28]} 28. Qg3 {[%clk 0:00:10]}  Re8 {[%clk 0:01:23]} 29. Rf1 {[%clk 0:00:09]}  Nh5 {[%clk 0:01:19]} 30. Qh4 {[%clk 0:00:09]}  f5 {[%clk 0:01:05]} 31. Bxf5 {[%clk 0:00:07]}  Bd4+ {[%clk 0:00:58]} 32. Kh1 {[%clk 0:00:07]}  Rf8 {[%clk 0:00:52]} 0-1


[Site "https://www.chess.com"]

[Event "Titled Tuesday Blitz January 10 Early 2023"]
[White "Erzhanov, Arman"]
[Black "Yelisieiev, Yevhenii"]
[WhiteFideId "4138821"]
[BlackFideId "14139642"]
[WhiteElo "2228"]
[BlackElo "2418"]
[Result "0-1"]
[Round "09"]
[TimeControl "180+2"]
[Date "2023.01.10"]
[WhiteClock "0:00:01"]
[BlackClock "0:00:05"]

1. e4 {[%clk 0:02:40]}  d6 {[%clk 0:03:00]} 2. d4 {[%clk 0:02:39]}  Nf6 {[%clk 0:03:01]} 3. Nc3 {[%clk 0:02:40]}  e5 {[%clk 0:03:01]} 4. Nf3 {[%clk 0:02:36]}  Nbd7 {[%clk 0:03:01]} 5. Bc4 {[%clk 0:02:36]}  Be7 {[%clk 0:03:01]} 6. O-O {[%clk 0:02:36]}  O-O {[%clk 0:03:01]} 7. Re1 {[%clk 0:02:35]}  c6 {[%clk 0:03:01]} 8. a4 {[%clk 0:02:36]}  a5 {[%clk 0:03:01]} 9. Ba2 {[%clk 0:02:34]}  exd4 {[%clk 0:03:00]} 10. Nxd4 {[%clk 0:02:32]}  Nc5 {[%clk 0:03:01]} 11. Qf3 {[%clk 0:02:30]}  Qb6 {[%clk 0:03:01]} 12. Nb3 {[%clk 0:02:02]}  Nfd7 {[%clk 0:01:43]} 13. Be3 {[%clk 0:01:54]}  Ne5 {[%clk 0:01:38]} 14. Qe2 {[%clk 0:01:34]}  Be6 {[%clk 0:01:27]} 15. Nxc5 {[%clk 0:01:28]}  dxc5 {[%clk 0:01:21]} 16. Bxe6 {[%clk 0:01:26]}  fxe6 {[%clk 0:01:17]} 17. b3 {[%clk 0:01:24]}  Qb4 {[%clk 0:01:15]} 18. Bd2 {[%clk 0:01:12]}  Qd4 {[%clk 0:01:12]} 19. Rad1 {[%clk 0:00:39]}  Rad8 {[%clk 0:01:02]} 20. Nb1 {[%clk 0:00:31]}  Qd6 {[%clk 0:00:40]} 21. Bxa5 {[%clk 0:00:28]}  Qb8 {[%clk 0:00:29]} 22. Bxd8 {[%clk 0:00:28]}  Bxd8 {[%clk 0:00:28]} 23. f4 {[%clk 0:00:25]}  Rxf4 {[%clk 0:00:26]} 24. Rf1 {[%clk 0:00:20]}  Nf7 {[%clk 0:00:19]} 25. Rxf4 {[%clk 0:00:20]}  Qxf4 {[%clk 0:00:19]} 26. Rf1 {[%clk 0:00:21]}  Qe5 {[%clk 0:00:19]} 27. Nd2 {[%clk 0:00:21]}  Bc7 {[%clk 0:00:18]} 28. Nf3 {[%clk 0:00:18]}  Qf4 {[%clk 0:00:18]} 29. g3 {[%clk 0:00:18]}  Qd6 {[%clk 0:00:17]} 30. Qf2 {[%clk 0:00:18]}  c4 {[%clk 0:00:14]} 31. Nd4 {[%clk 0:00:16]}  Ne5 {[%clk 0:00:14]} 32. bxc4 {[%clk 0:00:12]}  Bb6 {[%clk 0:00:14]} 33. c3 {[%clk 0:00:12]}  h6 {[%clk 0:00:13]} 34. Kh1 {[%clk 0:00:12]}  Kh7 {[%clk 0:00:10]} 35. Qf4 {[%clk 0:00:12]}  Bc7 {[%clk 0:00:09]} 36. Qe3 {[%clk 0:00:10]}  Bb6 {[%clk 0:00:09]} 37. Qe2 {[%clk 0:00:09]}  Bxd4 {[%clk 0:00:07]} 38. cxd4 {[%clk 0:00:10]}  Qxd4 {[%clk 0:00:08]} 39. Rd1 {[%clk 0:00:09]}  Qc5 {[%clk 0:00:09]} 40. Rc1 {[%clk 0:00:08]}  Qd4 {[%clk 0:00:09]} 41. Rd1 {[%clk 0:00:07]}  Qc3 {[%clk 0:00:09]} 42. Kg2 {[%clk 0:00:04]}  g6 {[%clk 0:00:09]} 43. Qd2 {[%clk 0:00:03]}  Qxc4 {[%clk 0:00:09]} 44. Re1 {[%clk 0:00:03]}  h5 {[%clk 0:00:09]} 45. Qg5 {[%clk 0:00:03]}  Qc2+ {[%clk 0:00:08]} 46. Kh1 {[%clk 0:00:01]}  Ng4 {[%clk 0:00:05]} 0-1


[Site "https://www.chess.com"]

[Event "Titled Tuesday Blitz January 10 Early 2023"]
[White "Derjabin, Ilja"]
[Black "Karabalis, Harilos"]
[WhiteFideId "14104768"]
[BlackFideId "4621808"]
[WhiteElo "2333"]
[BlackElo "2252"]
[Result "0-1"]
[Round "09"]
[TimeControl "180+2"]
[Date "2023.01.10"]
[WhiteClock "0:00:34"]
[BlackClock "0:01:42"]

1. d4 {[%clk 0:02:56]}  Nf6 {[%clk 0:02:59]} 2. c4 {[%clk 0:02:56]}  g6 {[%clk 0:02:57]} 3. Nc3 {[%clk 0:02:56]}  Bg7 {[%clk 0:02:57]} 4. e4 {[%clk 0:02:53]}  d6 {[%clk 0:02:57]} 5. Nge2 {[%clk 0:02:53]}  O-O {[%clk 0:02:54]} 6. Ng3 {[%clk 0:02:53]}  h5 {[%clk 0:02:53]} 7. Be2 {[%clk 0:02:53]}  c5 {[%clk 0:02:50]} 8. d5 {[%clk 0:02:53]}  e6 {[%clk 0:02:48]} 9. O-O {[%clk 0:02:52]}  h4 {[%clk 0:02:47]} 10. Nh1 {[%clk 0:02:51]}  exd5 {[%clk 0:02:47]} 11. cxd5 {[%clk 0:02:51]}  h3 {[%clk 0:02:42]} 12. g4 {[%clk 0:02:50]}  b5 {[%clk 0:02:26]} 13. g5 {[%clk 0:02:41]}  Nh7 {[%clk 0:02:26]} 14. Bxb5 {[%clk 0:02:39]}  Nxg5 {[%clk 0:02:24]} 15. f4 {[%clk 0:02:32]}  Nh7 {[%clk 0:02:23]} 16. Ng3 {[%clk 0:02:30]}  Nd7 {[%clk 0:02:19]} 17. e5 {[%clk 0:02:20]}  dxe5 {[%clk 0:02:16]} 18. f5 {[%clk 0:02:20]}  Ndf6 {[%clk 0:02:10]} 19. Bc6 {[%clk 0:02:16]}  Rb8 {[%clk 0:02:10]} 20. Rf2 {[%clk 0:01:47]}  gxf5 {[%clk 0:02:07]} 21. Nxf5 {[%clk 0:01:46]}  Bxf5 {[%clk 0:02:07]} 22. Rxf5 {[%clk 0:01:46]}  Ne8 {[%clk 0:02:06]} 23. Bxe8 {[%clk 0:01:31]}  Rxe8 {[%clk 0:02:05]} 24. Ne4 {[%clk 0:01:28]}  Rb4 {[%clk 0:02:00]} 25. Nc3 {[%clk 0:00:44]}  e4 {[%clk 0:01:52]} 26. Be3 {[%clk 0:00:39]}  Rxb2 {[%clk 0:01:47]} 27. Rc1 {[%clk 0:00:34]}  Qd6 {[%clk 0:01:43]} 28. Bf4 {[%clk 0:00:34]}  Qg6+ {[%clk 0:01:42]} 0-1


[Site "https://www.chess.com"]

[Event "Titled Tuesday Blitz January 10 Early 2023"]
[White "Bilan, Danila"]
[Black "Andreev, Konstantin"]
[WhiteFideId "24161918"]
[BlackFideId "24239305"]
[WhiteElo "2303"]
[BlackElo "2195"]
[Result "1-0"]
[Round "09"]
[TimeControl "180+2"]
[Date "2023.01.10"]
[WhiteClock "0:00:04"]
[BlackClock "0:00:15"]

1. d4 {[%clk 0:03:00]}  Nf6 {[%clk 0:02:52]} 2. Nf3 {[%clk 0:03:00]}  d5 {[%clk 0:02:52]} 3. c4 {[%clk 0:02:59]}  e6 {[%clk 0:02:51]} 4. Nc3 {[%clk 0:02:55]}  dxc4 {[%clk 0:02:47]} 5. e3 {[%clk 0:02:51]}  a6 {[%clk 0:02:43]} 6. Bxc4 {[%clk 0:02:46]}  b5 {[%clk 0:02:41]} 7. Bd3 {[%clk 0:02:42]}  c5 {[%clk 0:02:41]} 8. a4 {[%clk 0:01:50]}  b4 {[%clk 0:02:37]} 9. Ne4 {[%clk 0:01:43]}  cxd4 {[%clk 0:02:25]} 10. exd4 {[%clk 0:01:29]}  Bb7 {[%clk 0:02:24]} 11. Nc5 {[%clk 0:01:17]}  Bxc5 {[%clk 0:02:18]} 12. dxc5 {[%clk 0:01:17]}  O-O {[%clk 0:02:14]} 13. O-O {[%clk 0:01:14]}  Nbd7 {[%clk 0:02:10]} 14. Be3 {[%clk 0:01:07]}  Nd5 {[%clk 0:02:08]} 15. c6 {[%clk 0:00:41]}  Bxc6 {[%clk 0:02:07]} 16. Bxh7+ {[%clk 0:00:37]}  Kxh7 {[%clk 0:01:19]} 17. Qc2+ {[%clk 0:00:34]}  Kg8 {[%clk 0:01:19]} 18. Qxc6 {[%clk 0:00:31]}  a5 {[%clk 0:01:20]} 19. Rac1 {[%clk 0:00:24]}  Rb8 {[%clk 0:01:12]} 20. Rfd1 {[%clk 0:00:15]}  Qe7 {[%clk 0:01:10]} 21. Qc4 {[%clk 0:00:07]}  Rfe8 {[%clk 0:01:02]} 22. Qe4 {[%clk 0:00:07]}  N7f6 {[%clk 0:00:57]} 23. Qh4 {[%clk 0:00:07]}  Qd7 {[%clk 0:00:56]} 24. Bg5 {[%clk 0:00:06]}  Qxa4 {[%clk 0:00:55]} 25. Bxf6 {[%clk 0:00:05]}  Nxf6 {[%clk 0:00:56]} 26. Ng5 {[%clk 0:00:05]}  Rbd8 {[%clk 0:00:53]} 27. Rxd8 {[%clk 0:00:04]}  Rxd8 {[%clk 0:00:54]} 28. h3 {[%clk 0:00:04]}  Rd1+ {[%clk 0:00:53]} 29. Rxd1 {[%clk 0:00:05]}  Qxd1+ {[%clk 0:00:53]} 30. Kh2 {[%clk 0:00:05]}  Qd6+ {[%clk 0:00:50]} 31. g3 {[%clk 0:00:06]}  Qd2 {[%clk 0:00:48]} 32. Kg2 {[%clk 0:00:06]}  Qxb2 {[%clk 0:00:47]} 33. Qc4 {[%clk 0:00:06]}  Ne8 {[%clk 0:00:30]} 34. Qc8 {[%clk 0:00:05]}  Kf8 {[%clk 0:00:30]} 35. Qc5+ {[%clk 0:00:05]}  Kg8 {[%clk 0:00:29]} 36. Qe7 {[%clk 0:00:06]}  Nd6 {[%clk 0:00:17]} 37. Qd8+ {[%clk 0:00:03]}  Ne8 {[%clk 0:00:15]} 38. Qxe8# {[%clk 0:00:04]} 1-0


[Site "https://www.chess.com"]